Cogmind - Beta 16 --- EXPLORER MODE // 2026.02.09 @ 10:38:37 Player: K.K.Y. Result: Destroyed by 24-EYD(R) with Subdweller Machine Gun Performance ------------- Evolutions (0) 0 Regions Visited (2) 400 Robots Destroyed (40) 200 Value Destroyed (934) 934 Prototype IDs (12) 240 Alien Tech Used (0) 0 Bonus (0) 0 TOTAL SCORE: 1774 Bonus ------- None Cogmind --------- Core Integrity 0/250 Matter 290/300 Energy 14/100 System Corruption 0% Temperature Cool (0) Movement Core (500) Ox9 Location -10/Subcaves Parts ------- > --- POWER (1) -------- (None) > --- PROPULSION (2) --- (None) > --- UTILITY (3) ------ Large Storage Unit Structural Scanner > --- WEAPON (2) ------- Subdweller Beam Cannon > --- INVENTORY (15) --- Improved Heat Sink Humpback Improved Terrain Scanner Peak State ------------ > --- POWER ------------ Light Nuclear Core > --- PROPULSION ------- Light Treads Spiked Treads > --- UTILITY ---------- Large Storage Unit Structural Scanner > --- WEAPON ----------- Riot Gun Battle Rifle > --- INVENTORY -------- Improved Heat Sink Improved Terrain Scanner Light Assault Rifle Battle Rifle Mining Laser [Rating: 14] Favorites ----------- Power Light Nuclear Core Engine Ion Engine Power Core Light Nuclear Core Propulsion Light Treads Treads Light Treads Utility Structural Scanner Device Structural Scanner Storage Large Storage Unit Weapon Battle Rifle Energy Gun Particle Gun Energy Cannon Subdweller Beam Cannon Ballistic Gun Battle Rifle Special Weapon Mining Laser Build | -11 -10 -10 ------- Run | Yrd Mat Sub Slots Evolved 1 | . 1 . Power . | . . . Propulsion . | . . . Utility 1 | . 1 . Weapon . | . . . Parts Attached 20 | 6 7 7 Power 2 | 1 . 1 Engine 1 | 1 . . Core 1 | . . 1 Reactor . | . . . Propulsion 4 | 2 2 . Treads 4 | 2 2 . Leg . | . . . Wheel . | . . . Hover . | . . . Flight . | . . . Utility 5 | 1 4 . Device 3 | . 3 . Storage 2 | 1 1 . Processor . | . . . Hackware . | . . . Protection . | . . . Artifact . | . . . Weapon 9 | 2 1 6 Energy Gun 3 | 1 1 1 Energy Cannon 1 | . . 1 Ballistic Gun 4 | 1 . 3 Ballistic Cannon . | . . . Launcher . | . . . Special Weapon 1 | . . 1 Impact Weapon . | . . . Slashing Weapon . | . . . Piercing Weapon . | . . . Special Melee Weapon . | . . . Unidentified Prototypes . | . . . Parts Lost 12 | . 3 9 Power 2 | . 1 1 Propulsion 2 | . . 2 Utility 1 | . 1 . Weapon 7 | . 1 6 Highest Loss Streak 5 | . 1 5 To Critical Strikes . | . . . Average Backups 3 | . 2 5 Power . | . . . Propulsion . | . . . Utility 1 | . 1 2 Weapon 1 | . 1 2 Tool/Special . | . . . Unused Backups 3 | . . 3 Power . | . . . Propulsion . | . . . Utility 3 | . . 3 Weapon . | . . . Tool/Special . | . . . Average Slot Usage (%) 75 | . 74 76 Engine 3 | . 6 . Core 3 | . . 6 Treads 20 | . 17 22 Device 14 | . 18 12 Storage 12 | . 12 12 Energy Gun 10 | . 17 3 Ballistic Gun 7 | . 1 13 Special Weapon 2 | . . 3 Peak Build Rating 14 | 6 9 14 Average Rating 8 | 4 7 10 On Entrance 4 | . 6 8 Avg Prop Armor Cover (%) 23 | . 23 . Naked Turns . | . . . Heaviest Build 30 | 17 24 30 Greatest Support 40 | 40 40 40 Greatest Overweight (x) 8 | . 6 8 Average Overweight (x) . | . . . Largest Inventory Capacity 15 | 10 15 15 Average Capacity 12 | 8 10 15 Most Carried 7 | 5 7 7 Average Carried 4 | . 2 5 Final Capacity 15 | 10 15 15 Final Carried 4 | 2 4 4 Class Distribution -------------------- 100% | Hacker-Mutant Dominant Class ---------------- Hacker-Mutant | -10/Materials Hacker-Mutant | -10/Subcaves Resources | -11 -10 -10 ----------- Run | Yrd Mat Sub Matter Collected 867 | 269 151 447 Remotely . | . . . Salvage Created 1260 | 171 669 420 Parts 84 | 15 39 30 Haulers Intercepted 2 | . 2 . Recyclers Shooed . | . . . Parts Field Recycled . | . . . Retrieved Matter . | . . . Parts Self-Destructed . | . . . Prevented . | . . . Parts Restored . | . . . Kills | -11 -10 -10 ------- Run | Yrd Mat Sub Combat Hostiles Destroyed 26 | . 14 12 Guns 25 | . 14 11 Cannons 1 | . . 1 Classes Destroyed 12 | 2 8 2 Worker 1 | . 1 . Builder 1 | . 1 . Tunneler 4 | 4 . . Hauler 2 | . 2 . Recycler 1 | 1 . . Mechanic 1 | . 1 . Turret 2 | . . 2 Watcher 2 | . 2 . Swarmer 8 | . 4 4 Grunt 9 | . 9 . Artisan 1 | . . 1 Subdweller 9 | . 1 8 Best Kill Streak 6 | 5 6 5 Combat Bots Only 4 | . 3 4 Max Kills in Single Turn 1 | 1 1 1 Gunslinging . | . . . Exploded . | . . . Melee . | . . . Uniques/NPCs Destroyed . | . . . Combat | -11 -10 -10 -------- Run | Yrd Mat Sub Hostile Shots Fired 236 | . 77 159 Missed 77 | . 14 63 Hits 159 | . 63 96 Projectile 159 | . 63 96 AOE 4 | . . 4 Critical Strikes 3 | . 2 1 Damage Taken 1374 | . 439 935 Core 254 | . 120 134 Absorbed by Shields . | . . . Ignored by Resistances 862 | . 282 580 Core Remaining (%) 100 | 100 . . Volleys Fired 211 | 9 67 135 Largest 2 | 2 2 2 Hottest 125 | 60 105 125 Shots Fired 318 | 18 106 194 Gun 303 | 18 106 179 Cannon 2 | . . 2 Launcher . | . . . Special 13 | . . 13 Kinetic 158 | 9 11 138 Thermal 145 | 9 95 41 Explosive . | . . . Electromagnetic 15 | . . 15 Robot Hit Streak 43 | 9 24 43 Robot Miss Streak 3 | 1 2 3 Penetration Max . | . . . Secondary Targets 2 | . 1 1 Max Gunslinging Chain 1 | . 1 1 Shots Hit Robots 197 | 14 89 94 Core Hits 72 | 7 35 30 Critical Kills . | . . . Critical Parts Destroyed . | . . . Critical Strikes 1 | . 1 . Burn 1 | . 1 . Melee Attacks . | . . . Impact . | . . . Slashing . | . . . Piercing . | . . . Sneak Attacks . | . . . Combat Hostiles . | . . . Follow-up Attacks . | . . . Damage Inflicted 2713 | 142 1188 1383 Guns 2635 | 142 1188 1305 Cannons 30 | . . 30 Explosions . | . . . Melee . | . . . Ramming . | . . . Kinetic 1097 | 53 77 967 Thermal 1539 | 89 1111 339 Explosive . | . . . Electromagnetic 77 | . . 77 Impact . | . . . Slashing . | . . . Piercing . | . . . Highest Corruption . | . . . Average Corruption . | . . . Corruption Purged . | . . . Corruption Blocked . | . . . Overload Shots . | . . . Overflow Damage . | . . . Projectiles . | . . . Explosions . | . . . Melee . | . . . Knockbacks . | . . . Impact . | . . . Kinetic . | . . . Secondary . | . . . Self-Inflicted Damage . | . . . Shots . | . . . Rammed . | . . . Targets Rammed . | . . . Kicked . | . . . Crushed . | . . . Highest Temperature 557 | 40 557 5 Average Temperature 117 | 22 127 5 Received Heat Transfer 636 | . 306 330 Effects 13 | . 13 . Shutdowns 3 | . 3 . Energy Bleed 1 | . 1 . Interference 3 | . 3 . Short Circuit 2 | . 2 . Damage (minor) 3 | . 3 . Damage (major) 1 | . 1 . Siege Activations . | . . . Martial Activations . | . . . Shielding Activations . | . . . Robots Disrupted . | . . . Combat Hostiles . | . . . Robots Corrupted . | . . . Combat Hostiles . | . . . Parts Fried . | . . . Impact Corruptions . | . . . Robots Melted . | . . . Combat Hostiles . | . . . Parts Melted 4 | . 2 2 Heat Transferred 3653 | 200 2687 766 Parts Sabotaged . | . . . Parts Stolen . | . . . Parts Stripped . | . . . Power Chain Reactions . | . . . Alert | -11 -10 -10 ------- Run | Yrd Mat Sub Maximum Alert Level . | . . . Low Security (%) 100 | 100 100 . Level 1 . | . . . Level 2 . | . . . Level 3 . | . . . Level 4 . | . . . Level 5 . | . . . High Security . | . . . Max Security . | . . . Peak Influence 72 | 15 72 . Initial . | . . . Average 5 | 2 5 . Influence Increases 623 | 25 388 210 Destroy 0b10 Robot/C 380 | . 260 120 Destroy 0b10 Robot/NC 60 | 25 35 . Destroy Leader 58 | . 58 . Successful Hack 4 | . 4 . Destroy Structure 1 | . 1 . Lose Combat Pursuer 120 | . 30 90 Influence Decreases 623 | 25 388 210 Time Decay 603 | 25 378 200 Lost Part 20 | . 10 10 Squads Dispatched . | . . . Investigation . | . . . Extermination . | . . . Reinforcement . | . . . Assault . | . . . Garrison . | . . . Intercept . | . . . Searches Triggered . | . . . Construction Impeded . | . . . Haulers Reinforced . | . . . Active Scanning Responses . | . . . Cargo Convoy Interrupts . | . . . Stealth | -11 -10 -10 --------- Run | Yrd Mat Sub Distress Signals 1 | . 1 . Communications Jammed . | . . . Distress Signals . | . . . Times Spotted 37 | . 20 17 Peak Tracking Total 4 | . 3 4 Tactical Retreats 6 | . 3 3 Traps | -11 -10 -10 ------- Run | Yrd Mat Sub Traps Triggered 3 | . 3 . Indirectly . | . . . Trap Hack Attempts . | . . . Triggered . | . . . Disarmed . | . . . Reprogrammed . | . . . Reused . | . . . Traps Extracted . | . . . Installed . | . . . Triggered . | . . . Machines | -11 -10 -10 ---------- Run | Yrd Mat Sub Machines Disabled 2 | . . 2 Max in Single Turn 1 | . . 1 Machines Repaired . | . . . Machines Dismantled . | . . . Machines Sabotaged . | . . . Overloaded Fab Kills . | . . . Hacking | -11 -10 -10 --------- Run | Yrd Mat Sub Machines Accessed 8 | . 6 2 Terminals 6 | . 6 . Fabricators . | . . . Repair Stations . | . . . Recycling Units . | . . . Scanalyzers . | . . . Garrison Access . | . . . Total Hacks 10 | . 6 4 Successful 10 | . 6 4 Failed . | . . . Catastrophic . | . . . Database Lockouts . | . . . Manual 6 | . 6 . Terminals 6 | . 6 . Fabricators . | . . . Repair Stations . | . . . Recycling Units . | . . . Scanalyzers . | . . . Garrison Access . | . . . Terminal Hacks 4 | . . 4 Record 3 | . . 3 Proto ID Catalog 1 | . . 1 Fabricator Hacks . | . . . Repair Station Hacks . | . . . Recycling Unit Hacks . | . . . Scanalyzer . | . . . Garrison Access Hacks . | . . . Unauthorized Hacks 6 | . 6 . Terminals 6 | . 6 . Botnet 6 | . 6 . Fabricators . | . . . Repair Stations . | . . . Recycling Units . | . . . Scanalyzers . | . . . Garrison Access . | . . . Data Cores Recovered . | . . . Used . | . . . Hacking Detections 1 | . 1 . Full Trace Events . | . . . Feedback Events . | . . . Feedback Blocked . | . . . Robot Schematics Acquired . | . . . Robots Built . | . . . Authchips . | . . . Time . | . . . Total Robot Build Rating . | . . . Part Schematics Acquired . | . . . Parts Built . | . . . Authchips . | . . . Time . | . . . Total Part Build Rating . | . . . Part Studies Acquired . | . . . Parts Repaired . | . . . Time . | . . . Parts Recycled . | . . . Recycled Matter . | . . . Retrieved Matter . | . . . Retrieved Components . | . . . Parts Scanalyzed . | . . . Part Schematics Acquired . | . . . Parts Damaged . | . . . Bothacking | -11 -10 -10 ------------ Run | Yrd Mat Sub Used RIF Installer . | . . . Robots Hacked . | . . . Non-combat . | . . . Combat . | . . . Robot Hacks Applied . | . . . Relay Couplers Released . | . . . Fabnet Peak Effective % . | . . . Robots Rewired . | . . . Allies Hacked . | . . . Hacks Repelled . | . . . Allies | -11 -10 -10 -------- Run | Yrd Mat Sub Total Allies . | . . . Largest Group . | . . . Highest-Rated Group . | . . . Highest-Rated Ally . | . . . Total Orders . | . . . Ally Attacks . | . . . Total Damage . | . . . Kills . | . . . Allies Corrupted . | . . . Allies Melted . | . . . Intel | -11 -10 -10 ------- Run | Yrd Mat Sub Active Infowar (turns) 2298 | . 642 1656 Sensors 570 | . 570 . Structural 2298 | . 642 1656 Robot Analysis Total . | . . . Derelict Logs Recovered . | . . . Drone Launches . | . . . Drone Recoveries . | . . . Exploration | -11 -10 -10 ------------- Run | Yrd Mat Sub Turns Passed 4319 | 96 2021 2202 Spaces Moved 2096 | 52 979 1065 Core 211 | 23 154 34 Treads 1885 | 29 825 1031 Legs . | . . . Wheels . | . . . Hover . | . . . Flight . | . . . Fastest Speed 50 | 50 160 160 Average Speed 174 | 111 183 169 Slowest Speed 450 | 160 350 450 Overloaded Moves . | . . . Propulsion Burnouts . | . . . Robots Hopped . | . . . Potential Cave-ins . | . . . Cave-ins Triggered . | . . . Exploration Rate (%) 51 | 4 99 52 Regions Visited 2 Branch Regions 1 Pre-discovered Areas . | . . . Known Exits Taken 2 | 1 1 . Unknown Exits Taken . | . . . Scrap Searched 2 | . . 2 Spaces Dug . | . . . Terrain Destroyed 1 | . . 1 Melee . | . . . Projectile 1 | . . 1 AOE . | . . . Terrain Rammed . | . . . Walls Destroyed . | . . . Machines Disabled . | . . . Actions | -11 -10 -10 --------- Run | Yrd Mat Sub Total 2435 | 73 1103 1259 Wait 65 | . 22 43 Move 2094 | 51 978 1065 Hop . | . . . Pick Up 28 | 7 15 6 Fast Attach 1 | 1 . . Attach 22 | 5 10 7 Detach 2 | . 2 . Swap 7 | . 4 3 Drop 5 | . 5 . Fire 211 | 9 67 135 Melee . | . . . Ram . | . . . Kick . | . . . Crush . | . . . Escape Stasis . | . . . Rewire . | . . . Trap . | . . . Miscellaneous . | . . . Route ------- -11/Scrapyard -10/Materials (discovered 5 exits: *Mat x3 / *Min / *Sub) -10/Subcaves (discovered 3 exits: *Mat x2 / *Rec) History --------- Turn | Location | Event 7 | -11/Scrapyard | Identified exit to Materials 7 | -11/Scrapyard | Discovered exit to Materials (range 13) 97 | -11/Scrapyard | Entered Materials 97 | -10/Materials | Evolved 1 slot: Utility x1 315 | -10/Materials | Build established: Hacker-Mutant 408 | -10/Materials | Identified exit to Subcaves 408 | -10/Materials | Discovered exit to Subcaves (range 9) 484 | -10/Materials | Identified exit to Materials 484 | -10/Materials | Discovered exit to Materials (range 3) 516 | -10/Materials | Identified exit to Mines 516 | -10/Materials | Discovered exit to Mines (range 7) 953 | -10/Materials | Discovered exit to Materials (range 16) 1097 | -10/Materials | Derelicts attacked the area 1593 | -10/Materials | Discovered exit to Materials (range 4) 2118 | -10/Materials | Entered Subcaves 2119 | -10/Subcaves | Approached by a straggling Scientist 2129 | -10/Subcaves | Shifting Twisted Machinery released Sub. Laser 2139 | -10/Subcaves | Shifting Twisted Machinery released Scrap Shield 2256 | -10/Subcaves | Identified exit to Recycling 2256 | -10/Subcaves | Discovered exit to Recycling (range 10) 2275 | -10/Subcaves | Core integrity fell below 50% 2549 | -10/Subcaves | Shifting Twisted Machinery released Flamer 2565 | -10/Subcaves | Shifting Twisted Machinery released Battle Rifle 2759 | -10/Subcaves | Visited 4L-MR0's lab 2836 | -10/Subcaves | Identified exit to Materials 2836 | -10/Subcaves | Discovered exit to Materials (range 5) 2983 | -10/Subcaves | Ambushed by Subdweller buried in earth 3214 | -10/Subcaves | A swath of the cavern ceiling suddenly collapsed 3353 | -10/Subcaves | Visited Clippyterm 3358 | -10/Subcaves | Learned Factory fabricator intel 4130 | -10/Subcaves | Core integrity fell below 20% 4179 | -10/Subcaves | Lost 5 parts (1p2n2w) 4185 | -10/Subcaves | Discovered exit to Materials (range 11) 4320 | -10/Subcaves | Destroyed by 24-EYD(R) with Subdweller Machine Gun Last Messages --------------- 04136_ B6-S97(R) affixes Scrap Shield Fragment to Scrap Shield. 04142_ Spk. Treads destroyed. 04142_ Lgt. Nuclear Core destroyed. 04146_ Battle Rifle destroyed. 04148_ Lgt. Treads destroyed. 04149_ Sub. Optics melted. 04149_ Disposable Heat Sink melted. 04149_ B6-S97(R) destroyed. 04152_ Acquired 47 matter. 04161_ Acquired Sub. Beam Cannon. 04185_ EXIT=FOUND: MATERIALS 04271_ XY-N1U(R) emerges from the Twisted Machinery. 04303_ XY-N1U(R) destroyed. 04306_ Riot Gun destroyed. 04308_ Acquired 6 matter. 04311_ 24-EYD(R) affixes Scrap Shield Fragment to Scrap Shield. 04314_ Lgt. Assault Rifle destroyed. Map ----- +----------------------------------------------------+ | ?????????????????????????????????????????????????? | | ?????????????????????????????????????????????????? | | ?????????????????????????????????????????????????? | | ?????????????????????????????????????????????????? | | ?????????????????????????????????????????????????? | | ?????????????????????????????????????????????????? | | ?????????????????????????????????????????????????? | | ?????????????????????????????????????????????????? | | ?????????????????????????????????????????????????? | | ?????????????????????????????????????????????????? | | ????????????####?????????????????????????????????? | | ????????????#####???########?????????????????????? | | ????????????## ##############????????????????????? | | ???????????### ######" ###????????????????????? | | ???????????### < """ "##????????????????????? | | ????????##### " """"""##????#####???????????? | | ????????####### """ " ##????#####???????????? | | ????????## ##### " " ##???? ##?????????? | | ????????## ########## ###?## ? ###????????? | | ????????## ############ ##### ####???????? | | ????????### ####?##### ##### "" ###???????? | | ?????????## ######### " #### " ??????? | | ???######### #####"### " ??????? | | ??########## #### #### ??????? | | ??### #### ###!! ## # "### ??????? | | ??## ## %@=######? #### ?????????? | | ??## ]*%;#####?####???????????? | | ??### %! &*R ##????????????????? | | ???## #;### ! ## ????????????????? | | ??### ! ####### ### ### ????????????????? | | ##### =###?### ### ## ?????????????????? | | #### ####?## ??????????????????? | | # #### ###?### ## ##??????????????? | | # ##### ##?##### #########??????????????? | | ## ###### ###??################??????????????? | | #### #### ####????######?????????????????????? | | ### ### ###???????????????????????????????? | | ##???????????????????????????????? | | ##???????????????????????????????? | | ##???????????????????????????????? | | # ###???????????????????????????????? | | # ## ###???????????????????????????????? | | ### ##????????????????????????????????? | | ### ##????????????????????????????????? | | #### ###????????????????????????????????? | | ### ###????????????????????????????????? | | ## #### ##????????????????????????????????? | | ## ##### ##????????????????????????????????? | | #####?? ##????????????????????????????????? | | ####???? ###????????????????????????????????? | +----------------------------------------------------+ Best States ------------- Heat Dissipation 25 Energy Generation 14 Energy Capacity 250 Matter Stores 300 Matter Capacity 300 Sight Range 16 Robot Scan Range 14 Terrain Scan Density 10 Resistance: KI 35 Resistance: TH 35 Resistance: EX 35 Resistance: EM 35 Resistance: I 35 Resistance: S 35 Resistance: P 35 Evasion (%) 50 Recoil Reduction 2 Offensive Hacking 20 Item Schematics ----------------- None Robot Schematics ------------------ None Fabricated ------------ Nothing Repaired ---------- Nothing Studied --------- None Alien Tech Used ----------------- None Achievements -------------- None Challenges ------------ None Game ------ Seed MasterEnergyTrap Manual? 0 Play Time 00:16:00 Cumulative 326.1 hours Start 2026.02.09 @ 10:24:27 End 2026.02.09 @ 10:38:37 Sessions 1 Manual Loads 0 Difficulty Explorer Special Mode None Game No. 515 Rogue 0 Adventurer 0 Explorer 515 Win Type - Total 0 Types 0/0/0/0/0/0/0/0/0/0 Lore% 77 Gallery% 70 Achievement% 56 Wizard Run 0 Options --------- Layout 1 ASCII 0 Keyboard 0 Movement Mouse Keybinds 1 Fullscreen 1 Font 24/Smallcaps Map View 50x35 Zoom Use 0% Tactical HUD 1 Map Filters NONE Filters NONE Steam 1 RUN: c2087f4a-c965-4a71-a536-46553de37fcf